bitfinex-derivatives/quotes_SOLF0:USTF0_20250424
["timestamp","ask_amount","ask_price","bid_price","bid_amount"]
[1745470449870,6.6608451,148.31,148.27,13.4036451]
[1745470450974,13.4022451,148.31,148.27,13.4036451]
[1745470454675,6.7414,148.31,148.28,6.7423]
[1745470454975,25.72,148.35,148.29,6.6608451]
[1745470455174,32.3808451,148.35,148.31,6.6608451]
[1745470455375,32.4596,148.35,148.31,6.6608451]
[1745470455773,6.6608451,148.37,148.31,6.6608451]
[1745470456275,6.7393,148.36,148.32,6.7404]
[1745470457178,6.6608451,148.35,148.31,6.6608451]
[1745470457575,89.532877,148.39,148.31,6.6608451]
[1745470457776,6.6608451,148.37,148.31,6.6608451]
[1745470458779,6.7391,148.36,148.32,6.7404]
[1745470460480,6.6608451,148.35,148.29,6.6608451]
[1745470461180,6.7399,148.34,148.3,6.7413]
[1745470461581,6.6608451,148.35,148.29,6.6608451]
[1745470462079,6.6608451,148.35,148.28,32.4624]
[1745470462080,6.6608451,148.33,148.28,25.72]
[1745470462277,6.6608451,148.33,148.27,6.6608451]
[1745470462479,6.7408,148.32,148.27,13.4033451]
[1745470463079,6.7408,148.32,148.28,6.7424]
[1745470463683,6.7411,148.31,148.27,13.4035451]
[1745470463886,6.7411,148.31,148.27,6.7427]
[1745470464082,6.7411,148.31,148.28,6.6608451]
[1745470464684,6.7411,148.31,148.28,13.4032451]
[1745470465288,6.7411,148.31,148.28,6.7424]
[1745470465582,6.7411,148.31,148.28,13.4032451]
[1745470466291,6.6608451,148.33,148.29,6.7419]
[1745470466789,13.4011451,148.33,148.29,6.7419]
[1745470467189,13.4011451,148.33,148.28,6.6608451]
[1745470467190,6.6608451,148.33,148.28,13.4031451]
[1745470467387,6.7407,148.32,148.28,13.4031451]
[1745470469094,13.4012451,148.33,148.29,6.742]
[1745470469487,6.6608451,148.33,148.3,6.6608451]
[1745470469690,32.3808451,148.35,148.3,6.6608451]
[1745470469893,32.3808451,148.35,148.3,13.4021451]
[1745470470287,32.3808451,148.35,148.29,6.7418]
[1745470470288,13.4013451,148.33,148.29,6.7418]
[1745470470590,6.6608451,148.33,148.27,6.6608451]
[1745470471092,6.7409,148.32,148.28,6.7422]
[1745470472194,6.7409,148.32,148.29,6.7419]
[1745470472395,6.7409,148.32,148.29,13.4027451]
[1745470474294,6.7409,148.32,148.29,6.6608451]
[1745470476096,6.7409,148.32,148.29,13.4028451]
[1745470476297,6.7404,148.33,148.29,13.4028451]
[1745470479099,6.7407,148.32,148.29,6.6608451]
[1745470479894,6.6608451,148.34,148.29,6.6608451]
[1745470480099,6.7416,148.3,148.27,6.6608451]
[1745470483397,6.742,148.29,148.26,13.4039451]
[1745470487605,6.7426,148.28,148.26,6.6608451]
[1745470488406,6.7432,148.27,148.24,15.3324451]
[1745470488601,6.7432,148.27,148.24,13.4049451]
[1745470489003,6.7432,148.27,148.24,6.6608451]
[1745470489408,6.7432,148.27,148.24,13.4047451]
[1745470489906,13.4034451,148.28,148.25,6.7438]
[1745470491308,25.68,148.32,148.26,6.6608451]
[1745470491508,25.68,148.32,148.29,6.6608451]
[1745470492009,32.4209,148.32,148.29,6.6608451]
[1745470497208,32.4209,148.32,148.28,6.7422]
[1745470498610,6.7409,148.32,148.28,6.7422]
[1745470499912,6.7412,148.31,148.27,13.4035451]
[1745470500810,6.7412,148.31,148.28,6.7425]
[1745470502609,6.7412,148.31,148.27,13.4036451]
[1745470505106,6.7412,148.31,148.27,6.7428]
[1745470505309,6.7421,148.29,148.26,25.68]
[1745470505512,6.7421,148.29,148.25,6.6608451]
[1745470505714,6.6608451,148.31,148.25,6.6608451]
[1745470509421,6.7416,148.3,148.27,6.7428]
[1745470509817,6.7416,148.3,148.26,6.7431]
[1745470519527,6.7416,148.3,148.27,6.7429]
[1745470520723,25.66,148.32,148.27,6.6608451]
[1745470520924,6.6608451,148.33,148.27,32.3208451]
[1745470521124,6.6608451,148.33,148.29,6.6608451]
[1745470521923,13.4013451,148.33,148.29,13.4026451]
[1745470523424,6.6608451,148.33,148.27,25.66]
[1745470523626,6.6608451,148.33,148.28,6.6608451]
[1745470523827,6.7409,148.32,148.28,6.7422]
[1745470525627,6.7415,148.31,148.27,39.0636451]
[1745470525828,6.6608451,148.31,148.26,32.3008451]
[1745470526326,6.7418,148.3,148.26,39.0437451]
[1745470527231,13.4021451,148.31,148.27,6.7428]
[1745470527632,6.7413,148.31,148.27,6.7428]
[1745470532332,6.7416,148.3,148.26,39.0440451]
[1745470532632,6.7424,148.29,148.26,32.3008451]
[1745470533336,6.7424,148.29,148.26,6.6608451]
[1745470533633,6.7424,148.29,148.26,13.4041451]
[1745470535829,6.6608451,148.27,148.19,357.0]
[1745470536030,6.6608451,148.23,148.17,6.6608451]
[1745470536232,6.6608451,148.25,148.19,6.6608451]
[1745470536431,13.4038451,148.27,148.23,13.4053451]
[1745470537834,6.6608451,148.27,148.24,6.7442]
[1745470538838,32.3826,148.28,148.24,6.7442]
[1745470539036,6.743,148.27,148.24,6.7442]
[1745470540636,6.743,148.27,148.24,6.7443]
[1745470542843,32.3827,148.28,148.24,6.7443]
[1745470543441,6.743,148.27,148.24,6.7443]
[1745470545445,32.3828,148.28,148.24,6.7443]
[1745470545945,25.64,148.28,148.24,6.7443]
[1745470546650,32.3825,148.28,148.24,6.7443]
[1745470546948,25.62,148.31,148.25,6.6608451]
[1745470547149,32.2808451,148.31,148.25,6.6608451]
[1745470547548,32.2808451,148.31,148.27,6.6608451]
[1745470547850,6.7418,148.3,148.27,6.6608451]
[1745470551248,39.0221451,148.31,148.27,13.4035451]
[1745470551549,25.62,148.34,148.29,6.6608451]
[1745470551740,32.3598,148.34,148.3,6.7413]
[1745470552053,627.45999406,148.38,148.31,6.6608451]
[1745470552250,6.6608451,148.37,148.31,6.6608451]
[1745470552543,6.7393,148.35,148.31,13.4017451]
[1745470556254,6.6608451,148.32,148.25,25.62]
[1745470556551,25.62,148.34,148.31,6.6608451]
[1745470557153,32.3599,148.34,148.31,6.6608451]
[1745470557354,6.6608451,148.36,148.31,6.6608451]
[1745470557854,6.7396,148.35,148.32,6.7404]
[1745470558053,6.7396,148.35,148.31,6.6608451]
[1745470558251,6.7396,148.35,148.31,13.4018451]
[1745470560854,6.7398,148.34,148.31,13.4018451]
[1745470561954,6.7395,148.35,148.31,13.4018451]
[1745470563057,6.7395,148.35,148.32,6.7406]
[1745470563256,13.3998451,148.36,148.31,6.6608451]
[1745470563652,13.3998451,148.36,148.32,6.7405]
[1745470568458,6.7393,148.35,148.32,6.7405]
[1745470572463,6.6608451,148.36,148.31,6.6608451]
[1745470572961,13.3997451,148.36,148.33,6.7399]
[1745470574162,6.6608451,148.36,148.34,6.7397]
[1745470574462,6.6608451,148.36,148.31,6.6608451]
[1745470574962,6.7389,148.36,148.33,13.4007451]
[1745470575356,25.62,148.37,148.33,6.6608451]
[1745470575558,6.7377,148.39,148.36,6.7387]
[1745470575761,6.7377,148.39,148.35,6.6608451]
[1745470576164,6.7377,148.39,148.35,13.3997451]
[1745470576458,6.7377,148.39,148.35,6.6608451]
[1745470577564,13.3979451,148.4,148.35,6.6608451]
[1745470577764,3.9678,148.43,148.38,6.6608451]
[1745470577968,10.6286451,148.43,148.38,6.6608451]
[1745470578463,32.3154,148.44,148.4,6.7367]
[1745470578662,32.2408451,148.44,148.38,6.6608451]
[1745470579765,32.2408451,148.44,148.4,6.6608451]
[1745470579964,32.2408451,148.44,148.41,6.7365]
[1745470580566,32.2408451,148.44,148.42,6.7361]
[1745470580865,6.6608451,148.44,148.42,6.7361]
[1745470581066,6.6608451,148.44,148.41,6.7364]
[1745470582366,6.6608451,148.44,148.37,25.58]
[1745470582564,6.6608451,148.42,148.37,32.2408451]
[1745470583072,13.3970451,148.42,148.38,6.7378]
[1745470583569,6.6608451,148.42,148.37,32.21972561]
[1745470583769,6.6608451,148.42,148.39,6.7371]
[1745470584271,13.3969451,148.42,148.39,6.7371]
[1745470584668,13.3969451,148.42,148.38,6.7378]
[1745470585971,6.7367,148.41,148.38,6.7378]
[1745470586369,6.6608451,148.44,148.38,6.7378]
[1745470586671,6.6608451,148.44,148.39,13.3981451]
[1745470586970,6.7358,148.43,148.39,13.3981451]
[1745470587670,6.6608451,148.44,148.4,6.737]
[1745470588373,13.3961451,148.44,148.4,6.737]
[1745470588569,6.6608451,148.46,148.41,13.3971451]
[1745470588872,6.6608451,148.46,148.41,6.6608451]
[1745470589276,36.1761,148.47,148.43,13.3962451]
[1745470589470,25.56,148.47,148.43,6.6608451]
[1745470589870,13.3952451,148.46,148.43,6.7356]
[1745470590271,6.6608451,148.46,148.43,6.7356]
[1745470590574,32.294,148.47,148.43,6.6608451]
[1745470590773,6.6608451,148.48,148.43,6.6608451]
[1745470591275,13.3946451,148.48,148.44,6.7349]
[1745470591473,6.6608451,148.48,148.43,6.6608451]
[1745470592374,6.7339,148.47,148.43,13.3961451]
[1745470592575,6.6608451,148.48,148.43,6.6608451]
[1745470593876,13.3943451,148.48,148.44,6.7349]
[1745470594780,13.3943451,148.48,148.45,6.7346]
[1745470594977,6.6608451,148.48,148.45,6.7346]
[1745470596076,32.2926,148.5,148.46,6.7341]
[1745470596374,32.2926,148.5,148.45,6.6608451]
[1745470596576,6.6608451,148.51,148.47,6.7335]
[1745470596577,13.3930451,148.51,148.47,6.7335]
[1745470596770,13.3930451,148.51,148.45,6.6608451]
[1745470596966,6.6608451,148.51,148.45,6.6608451]
[1745470597166,6.7326,148.5,148.46,6.7341]
[1745470597473,6.6608451,148.48,148.43,6.6608451]
[1745470597767,6.6608451,148.48,148.44,6.7351]
[1745470597768,6.6608451,148.47,148.44,6.7351]
[1745470597972,6.6608451,148.47,148.42,6.6608451]
[1745470598476,13.3947451,148.47,148.43,6.7354]
[1745470599880,6.7339,148.47,148.43,13.3962451]
[1745470600779,6.7339,148.47,148.44,6.735]
[1745470601980,13.3943451,148.48,148.44,6.735]
[1745470603070,6.6608451,148.48,148.45,6.7346]
[1745470603274,6.7331,148.49,148.45,6.6608451]
[1745470603470,6.6608451,148.51,148.47,6.6608451]
[1745470603676,6.6608451,148.52,148.47,6.6608451]
[1745470603877,38.9520451,148.53,148.49,6.6608451]
[1745470604178,38.9520451,148.53,148.49,13.3934451]
[1745470604476,25.56,148.53,148.49,6.6608451]
[1745470604779,25.56,148.53,148.5,6.7321]
[1745470605378,25.56,148.53,148.51,6.7319]
[1745470605783,15.3162451,148.55,148.51,6.7319]
[1745470606083,13.3912451,148.55,148.51,6.7319]
[1745470607279,6.6608451,148.55,148.49,6.6608451]
[1745470607584,6.6608451,148.55,148.51,6.6608451]
[1745470607785,6.6608451,148.55,148.49,32.1808451]
[1745470608084,13.3911451,148.55,148.51,6.7319]
[1745470609983,32.2499,148.56,148.52,6.7315]
[1745470610185,25.52,148.56,148.52,6.7315]
[1745470610487,6.6608451,148.54,148.52,6.7315]
[1745470610785,6.6608451,148.54,148.53,6.7311]
[1745470611090,6.6608451,148.56,148.53,6.7311]
[1745470611890,6.6608451,148.56,148.54,6.7305]
[1745470612081,6.6608451,148.58,148.53,6.6608451]
[1745470612283,565.7608451,148.59,148.53,6.6608451]
[1745470612587,32.1808451,148.59,148.53,32.1808451]
[1745470612982,29.4419,148.63,148.57,6.6608451]
[1745470613286,13.3881451,148.62,148.58,6.7286]
[1745470614190,6.6608451,148.6,148.55,6.6608451]
[1745470614386,6.6608451,148.59,148.55,6.6608451]
[1745470614792,13.3893451,148.59,148.55,13.3908451]
[1745470615288,6.6608451,148.59,148.55,6.6608451]
[1745470615489,6.7289,148.58,148.55,6.6608451]
[1745470615888,6.6608451,148.59,148.55,6.6608451]
[1745470616390,13.3895451,148.59,148.55,13.3910451]
[1745470616689,6.6608451,148.59,148.55,13.3910451]
[1745470616990,6.7291,148.58,148.55,6.6608451]
[1745470617286,6.7291,148.58,148.54,13.3913451]
[1745470618289,6.7291,148.58,148.55,6.7301]
[1745470619882,6.7291,148.58,148.54,13.3913451]
[1745470620088,6.7296,148.57,148.54,6.6608451]
[1745470620686,6.7298,148.56,148.54,6.6608451]
[1745470622191,6.7298,148.56,148.53,32.2508]
[1745470624597,6.6608451,148.55,148.5,32.1608451]
[1745470626303,13.3913451,148.55,148.52,6.7314]
[1745470627202,13.3907451,148.56,148.5,32.1608451]
[1745470627804,6.7302,148.55,148.52,6.7313]
[1745470628300,6.6608451,148.56,148.52,6.7313]
[1745470628504,13.3908451,148.56,148.53,6.731]
[1745470630105,13.35124333,148.56,148.53,6.731]
[1745470630601,32.1608451,148.59,148.54,6.6608451]
[1745470630807,25.5,148.59,148.54,6.6608451]
[1745470631004,3.9219,148.63,148.54,6.6608451]
[1745470631206,3.9219,148.63,148.56,6.6608451]
[1745470631406,6.6608451,148.62,148.56,6.6608451]
[1745470631703,13.3881451,148.62,148.58,6.7286]
[1745470632107,6.7279,148.61,148.57,6.7292]
[1745470632304,13.3887451,148.61,148.56,6.6608451]
[1745470632607,6.6608451,148.61,148.58,6.7285]
[1745470632798,6.6608451,148.62,148.56,6.6608451]
[1745470633308,13.3880451,148.62,148.59,6.7284]
[1745470633503,6.6608451,148.62,148.56,6.6608451]
[1745470633700,6.6608451,148.58,148.54,25.5]
[1745470633903,6.6608451,148.58,148.55,6.7301]
[1745470634207,6.6608451,148.58,148.54,25.5]
[1745470634407,13.3900451,148.58,148.54,32.2305]
[1745470635607,6.7294,148.57,148.54,32.2305]
[1745470636506,13.3897451,148.58,148.54,32.2305]
[1745470637309,6.6608451,148.58,148.54,32.2305]
[1745470638503,6.6608451,148.58,148.55,6.7301]
[1745470639210,6.6608451,148.56,148.54,6.7305]
[1745470639413,6.6608451,148.56,148.51,34.2012451]
[1745470639710,6.6608451,148.56,148.53,6.7307]
[1745470640812,13.3906451,148.56,148.53,6.7307]
[1745470641111,6.6608451,148.56,148.54,6.7306]
[1745470641308,13.3908451,148.56,148.51,34.2012451]
[1745470641514,13.3908451,148.56,148.52,6.7312]
[1745470641711,13.3908451,148.56,148.51,27.5404]
[1745470642515,13.3908451,148.56,148.53,6.731]
[1745470643118,6.6608451,148.56,148.54,6.7306]
[1745470643516,6.6608451,148.56,148.52,6.6608451]
[1745470643815,6.6608451,148.56,148.55,6.7302]
[1745470644717,6.6608451,148.58,148.55,6.7302]
[1745470645010,13.3901451,148.58,148.55,6.7302]
[1745470645217,13.3901451,148.58,148.54,6.7305]
[1745470645517,6.6608451,148.58,148.52,6.6608451]
[1745470645714,6.6608451,148.56,148.52,6.6608451]
[1745470646017,6.6608451,148.56,148.52,13.3922451]
[1745470646213,13.3909451,148.56,148.52,13.3922451]
[1745470646516,6.6608451,148.56,148.51,32.1919]
[1745470646818,6.7306,148.55,148.51,32.1919]
[1745470647417,6.6608451,148.54,148.51,32.1919]
[1745470647815,6.6608451,148.54,148.51,25.46]
[1745470648010,25.46,148.6,148.52,6.6608451]
[1745470648318,6.7298,148.56,148.52,13.3920451]
[1745470648522,6.7298,148.56,148.52,6.6608451]
[1745470649718,6.7295,148.57,148.53,6.7308]
[1745470651220,13.3898451,148.58,148.52,6.6608451]
[1745470652124,6.7295,148.57,148.49,25.46]
[1745470652421,6.6608451,148.58,148.54,6.7303]
[1745470652616,13.3899451,148.58,148.54,6.7303]
[1745470653016,13.3899451,148.58,148.55,6.7302]
[1745470653419,6.7293,148.57,148.53,6.6608451]
[1745470653821,6.7293,148.57,148.54,6.7303]
[1745470654823,13.3909451,148.56,148.52,6.7312]
[1745470655323,6.6608451,148.56,148.52,6.7312]
[1745470655527,6.7303,148.55,148.52,6.7312]
[1745470661729,6.7307,148.54,148.52,6.7312]
[1745470662129,13.3915451,148.54,148.51,6.7319]
[1745470662726,6.6608451,148.52,148.47,3.9087]
[1745470662927,6.6608451,148.52,148.47,10.5695451]
[1745470663332,13.3927451,148.52,148.49,6.7328]
[1745470669433,6.732,148.51,148.47,13.3943451]
[1745470669634,6.732,148.51,148.47,6.6608451]
[1745470670538,13.3924451,148.52,148.49,6.7329]
[1745470671137,6.7321,148.51,148.48,6.7332]
[1745470672937,13.3925451,148.52,148.49,6.7327]
[1745470673338,6.6608451,148.52,148.47,6.6608451]
[1745470673535,6.732,148.51,148.48,6.7331]
[1745470673736,6.6608451,148.52,148.47,6.6608451]
[1745470674541,6.7321,148.51,148.48,6.7331]
[1745470675740,25.48,148.55,148.46,25.48]
[1745470675741,13.3934451,148.5,148.46,25.48]
[1745470675943,6.6608451,148.5,148.46,25.48]
[1745470676142,6.6608451,148.5,148.46,32.1408451]
[1745470676442,6.6608451,148.5,148.49,6.7329]
[1745470678546,6.6608451,148.5,148.48,6.7332]
[1745470687041,6.6608451,148.5,148.47,6.7336]
[1745470687249,6.6608451,148.5,148.46,25.48]
[1745470687750,6.6608451,148.5,148.47,6.7336]
[1745470689247,13.3933451,148.5,148.47,6.7336]
[1745470689447,6.6608451,148.5,148.47,6.7336]
[1745470689642,6.6608451,148.5,148.48,6.7333]
[1745470690751,6.6608451,148.5,148.47,6.7336]
[1745470691048,13.3934451,148.5,148.47,6.7336]
[1745470692849,6.6608451,148.5,148.47,6.7336]
[1745470693752,13.3933451,148.5,148.47,6.7336]
[1745470694250,6.6608451,148.5,148.47,6.7336]
[1745470694753,6.6608451,148.48,148.43,29.4692]
[1745470695451,6.6608451,148.48,148.45,6.7343]
[1745470695952,6.6608451,148.48,148.46,6.7342]
[1745470697451,6.6608451,148.48,148.47,6.7338]
[1745470697751,13.3934451,148.5,148.47,6.7338]
[1745470700153,13.3934451,148.5,148.46,6.734]
[1745470700654,6.6608451,148.5,148.44,6.6608451]
[1745470701359,6.6608451,148.5,148.47,6.7335]
[1745470703453,13.3935451,148.5,148.46,6.7341]
[1745470704857,13.3935451,148.5,148.47,6.7337]
[1745470706555,32.1921,148.51,148.48,6.7333]
[1745470706762,25.46,148.51,148.46,6.6608451]
[1745470706958,6.6608451,148.52,148.46,6.6608451]
[1745470707663,6.7321,148.51,148.46,6.6608451]
[1745470708866,6.7321,148.51,148.48,6.7331]
[1745470709059,13.3926451,148.52,148.48,6.7331]
[1745470709465,13.3926451,148.52,148.49,6.7329]
[1745470710269,13.3926451,148.52,148.48,6.7332]
[1745470710767,6.7321,148.51,148.48,6.7332]
[1745470714671,13.3926451,148.52,148.48,6.7332]
[1745470716874,13.3926451,148.52,148.49,6.7328]
[1745470717171,13.3926451,148.52,148.46,6.6608451]
[1745470717967,13.3926451,148.52,148.48,6.7332]
[1745470718571,6.7322,148.51,148.48,6.7332]
[1745470718771,6.7322,148.51,148.47,6.7337]
[1745470721074,6.7322,148.51,148.48,6.7333]
[1745470722274,13.3926451,148.52,148.49,6.7329]
[1745470722475,13.3926451,148.52,148.46,6.6608451]
[1745470722974,6.7321,148.51,148.48,6.7331]
[1745470725978,6.6608451,148.5,148.45,25.42]
[1745470727483,13.3935451,148.5,148.46,6.734]
[1745470727681,6.6608451,148.5,148.46,6.6608451]
[1745470727977,6.6608451,148.5,148.48,6.7331]
[1745470728181,13.3926451,148.52,148.48,6.7331]
[1745470728781,31.293,148.54,148.48,6.6608451]
[1745470728983,6.6608451,148.53,148.48,6.6608451]
[1745470729383,13.3922451,148.53,148.5,6.7324]
[1745470730182,6.7314,148.53,148.5,6.7324]
[1745470730382,13.3922451,148.53,148.5,6.7324]
[1745470731183,32.1507,148.54,148.51,6.732]
[1745470733583,32.1507,148.54,148.45,25.42]
[1745470733584,25.42,148.54,148.47,6.6608451]
[1745470733890,6.6608451,148.51,148.46,6.6608451]
[1745470734284,6.6608451,148.49,148.45,25.42]
[1745470734677,6.6608451,148.49,148.44,6.6608451]
[1745470735283,13.3939451,148.49,148.45,6.7345]
[1745470736287,6.6608451,148.49,148.45,6.7345]
[1745470736888,6.6608451,148.49,148.46,6.7342]
[1745470737788,6.6608451,148.5,148.46,6.6608451]
[1745470738488,13.3924451,148.52,148.48,6.7331]
[1745470741284,13.3924451,148.52,148.49,6.7329]
[1745470741884,6.6608451,148.52,148.5,6.7323]
[1745470742689,6.6608451,148.52,148.47,6.6608451]
[1745470742988,13.3927451,148.52,148.47,6.6608451]
[1745470743290,13.3927451,148.52,148.48,6.7331]
[1745470744791,6.7321,148.51,148.48,6.7331]
[1745470745090,6.7321,148.51,148.47,13.3945451]
[1745470745292,6.6608451,148.5,148.47,6.7337]
[1745470745491,13.3935451,148.5,148.46,6.7341]
[1745470745687,6.6608451,148.48,148.43,10.6700451]
[1745470745885,6.6608451,148.48,148.43,36.0700451]
[1745470746393,6.6608451,148.48,148.44,6.7351]
[1745470746887,13.3944451,148.48,148.44,6.7351]
[1745470748587,6.7336,148.48,148.44,6.7351]
[1745470748793,13.3944451,148.48,148.45,6.7347]
[1745470750495,13.3944451,148.48,148.44,6.7351]
[1745470752898,6.734,148.47,148.44,6.7351]
[1745470753699,13.3943451,148.48,148.44,6.7351]
[1745470755397,6.7339,148.47,148.44,6.7351]
[1745470755799,6.6608451,148.48,148.44,6.7351]
[1745470755999,13.3943451,148.48,148.44,6.7351]
[1745470756302,13.3943451,148.48,148.45,6.7347]
[1745470756699,13.3943451,148.48,148.43,32.0608451]
[1745470756900,13.3943451,148.48,148.44,6.7349]
[1745470760601,13.3943451,148.48,148.45,6.7346]
[1745470761302,6.6608451,148.48,148.45,6.7346]
[1745470763505,13.3943451,148.48,148.45,6.7346]
[1745470763704,13.3943451,148.48,148.44,6.735]
[1745470763999,6.6608451,148.46,148.43,25.4]
[1745470764304,13.3953451,148.46,148.43,25.4]
[1745470764906,6.6608451,148.46,148.43,25.4]
[1745470765205,6.6608451,148.46,148.43,32.1354]
[1745470765505,6.6608451,148.46,148.43,25.4]
[1745470766107,6.6608451,148.46,148.43,32.1354]
[1745470766606,13.3952451,148.46,148.43,32.1354]
[1745470767007,6.6608451,148.46,148.43,32.1354]
[1745470767503,6.7339,148.47,148.43,32.1354]
[1745470767705,13.3947451,148.47,148.44,6.7351]
[1745470769008,6.6608451,148.47,148.44,6.7351]
[1745470770804,13.3947451,148.47,148.44,6.7351]
[1745470775312,6.6608451,148.47,148.44,6.7351]
[1745470776416,13.3946451,148.47,148.44,6.7351]
[1745470778118,6.6608451,148.47,148.45,6.7345]
[1745470778416,6.6608451,148.47,148.43,25.4]
[1745470779119,13.3947451,148.47,148.44,6.7352]
[1745470779517,6.6608451,148.47,148.43,25.4]
[1745470779918,6.7346,148.46,148.43,32.1356]
[1745470781221,6.7346,148.46,148.43,25.4]
[1745470781418,6.7344,148.46,148.43,25.4]
[1745470782423,13.3948451,148.47,148.43,32.1356]
[1745470783324,13.3948451,148.47,148.43,6.7356]
[1745470785325,6.6608451,148.47,148.42,6.6608451]
[1745470785827,6.6608451,148.47,148.45,6.7346]
[1745470794537,13.3947451,148.47,148.42,6.6608451]
[1745470795034,6.6608451,148.47,148.42,6.6608451]
[1745470795430,13.3947451,148.47,148.43,6.7353]
[1745470796130,13.3947451,148.47,148.44,6.7351]
[1745470799033,6.6608451,148.47,148.42,6.6608451]
[1745470799731,6.6608451,148.47,148.44,6.7349]
[1745470801332,13.3947451,148.47,148.44,6.7349]
[1745470801533,13.3947451,148.47,148.43,6.7355]
[1745470801832,6.7344,148.46,148.43,6.7355]
[1745470802131,6.6608451,148.45,148.42,6.736]
[1745470803337,13.3956451,148.45,148.42,6.736]
[1745470804035,6.7357,148.43,148.4,6.7369]
[1745470806333,6.7354,148.44,148.41,6.7365]
[1745470807134,13.3957451,148.45,148.42,6.736]
[1745470808334,6.6608451,148.46,148.43,6.7356]
[1745470808736,6.6608451,148.46,148.44,6.7352]
[1745470811636,6.6608451,148.48,148.42,6.6608451]
[1745470811836,13.3939451,148.49,148.44,6.6608451]
[1745470812335,13.3939451,148.49,148.45,6.7343]
[1745470812837,6.6608451,148.49,148.46,6.7342]
[1745470813035,25.4,148.5,148.44,6.6608451]
[1745470813243,6.6608451,148.48,148.43,25.34]
[1745470813538,6.6608451,148.48,148.44,6.7351]
[1745470813839,13.3946451,148.48,148.44,6.7351]
[1745470814041,6.6608451,148.48,148.43,6.7355]
[1745470814530,6.6608451,148.46,148.43,6.7355]
[1745470816241,13.3952451,148.46,148.43,6.7355]
[1745470824948,6.735,148.45,148.42,6.736]
[1745470826250,13.3953451,148.46,148.42,6.736]
[1745470826447,13.3953451,148.46,148.43,6.7356]
[1745470827248,6.6608451,148.46,148.44,6.7352]
[1745470828148,13.3948451,148.47,148.44,6.7352]
[1745470828452,13.3948451,148.47,148.43,6.7355]
[1745470828748,32.0336,148.48,148.42,6.6608451]
[1745470829048,25.3,148.48,148.45,6.7345]
[1745470830343,15.24,148.5,148.44,6.6608451]
[1745470830550,21.9008451,148.5,148.44,6.6608451]
[1745470830742,32.9808451,148.5,148.47,6.7337]
[1745470832949,39.7133451,148.5,148.46,13.3949451]
[1745470833545,24.4733451,148.5,148.46,13.3949451]
[1745470834249,6.733,148.49,148.46,6.6608451]
[1745470835546,6.7337,148.48,148.44,38.6957451]
[1745470835850,25.3,148.51,148.44,31.9608451]
[1745470836050,6.7332,148.49,148.45,6.7347]
[1745470838353,13.3934451,148.5,148.46,6.7342]
[1745470840855,32.0321,148.51,148.46,6.6608451]
[1745470842257,32.0321,148.51,148.48,6.7333]
[1745470842954,32.0321,148.51,148.46,6.6608451]
[1745470843257,25.3,148.51,148.46,6.6608451]
[1745470843758,25.3,148.51,148.48,6.733]
[1745470844059,13.3924451,148.52,148.48,6.733]
[1745470844358,6.732,148.51,148.47,6.7336]
[1745470845856,6.732,148.51,148.48,6.7333]
[1745470846055,6.7317,148.52,148.48,6.7333]
[1745470846359,6.6608451,148.51,148.48,6.7333]
[1745470846861,6.6608451,148.51,148.47,6.7336]
[1745470847358,13.3929451,148.51,148.47,6.7336]
[1745470847656,6.7321,148.51,148.48,6.7333]
[1745470847958,13.3929451,148.51,148.47,6.6608451]
[1745470848557,13.3929451,148.51,148.47,13.3945451]
[1745470849059,6.7326,148.5,148.47,6.6608451]
[1745470849261,6.6608451,148.49,148.45,5.9297]
[1745470849559,3.9658,148.53,148.45,5.9297]
[1745470849857,6.6608451,148.49,148.44,31.9608451]
[1745470850059,3.9658,148.53,148.46,6.6608451]
[1745470850060,6.6608451,148.5,148.46,6.6608451]
[1745470850559,13.3935451,148.5,148.46,13.3948451]
[1745470850962,13.3935451,148.5,148.46,6.6608451]
[1745470851856,6.6608451,148.5,148.47,6.7336]
[1745470852057,6.6608451,148.5,148.46,6.6608451]
[1745470852465,6.7317,148.52,148.48,6.6608451]
[1745470852758,3.9658,148.53,148.48,6.6608451]
[1745470852956,47.9508451,148.54,148.48,6.6608451]
[1745470853160,47.9508451,148.54,148.48,31.9408451]
[1745470853363,15.99,148.54,148.52,6.6608451]
[1745470853764,95.64113916,148.57,148.52,6.6608451]
[1745470854168,6.73,148.56,148.53,6.7311]